Cogmind - Beta 14 @@@ ROGUE MODE // 2025.01.03 @ 21:20:56 Player: Mathewnd Result: Destroyed by G-67 Veteran with Field Laser Performance ------------- Evolutions (6) 3000 Regions Visited (13) 2600 Robots Destroyed (109) 545 Value Destroyed (3388) 3388 Prototype IDs (24) 480 Alien Tech Used (0) 0 Bonus (3092) 3092 TOTAL SCORE: 13105 Bonus ------- High Alert Combat Kills 127 Follower Combat Kills 1514 Entered Garrisons 200 Registered with UFD 300 Built Enhanced Grunts 300 A7 Reached Mainframe 300 Met R17 at Cetus 500 Friendly Fire -149 Cogmind --------- Core Integrity 0/1150 Matter 195/300 Energy 95/100 System Corruption 0% Temperature Cool (0) Movement Core (50) Location -4/Factory Parts ------- > --- POWER (2) -------- (None) > --- PROPULSION (5) --- (None) > --- UTILITY (10) ----- Experimental Optical Array Advanced Signal Interpreter > --- WEAPON (2) ------- (None) > --- INVENTORY (5) ---- Angular Momentum Engine Quantum Reactor Improved Plasma Cutter Peak State ------------ > --- POWER ------------ Angular Momentum Engine Light Angular Momentum Engine > --- PROPULSION ------- Gravmag System Antigrav System Antigrav System Antigrav System Linear Gravjet > --- UTILITY ---------- Medium Storage Unit Advanced Signal Interpreter Matter Filter Improved Hacking Suite Improved Hacking Suite Improved Hacking Suite Improved System Shield Improved System Shield > --- WEAPON ----------- Ripper > --- INVENTORY -------- Neutrino Core Quantum Reactor Gravmag System Improved Flight Unit Field Propulsion Drive Field Propulsion Drive Improved Sensor Array Gauss Cannon Long-range Missile Launcher Advanced Datajack [Rating: 82] Favorites ----------- Power Deuterium Engine Engine Deuterium Engine Power Core Light Nuclear Core Reactor Quantum Reactor Propulsion Light Treads Treads Light Treads Leg Enhanced Flexi-carbon Leg Hover Unit Gravmag System Flight Unit Improved Flight Unit Utility Improved Hacking Suite Device Improved Sensor Array Storage Huge Storage Unit Processor Advanced Signal Interpreter Hackware Improved Hacking Suite Protection Light Armor Plating Weapon Gauss Cannon Energy Cannon Neutron Cannon Ballistic Gun Assault Rifle Ballistic Cannon Gauss Cannon Launcher Long-range Missile Launcher Impact Weapon Power Maul Slashing Weapon Ripper Build | -11 -10 -9 -8 -8 -8 -8 -6 -6 -6 -6 -5 -5 -4 ------- Run | Yrd Mat Mat Mat Sto Rec Scr Fac Ext Cet Arc Fac Gar Fac Slots Evolved 12 | . . 2 2 . . . 4 . . . 2 . 2 Power 1 | . . . . . . . 1 . . . . . . Propulsion 3 | . . 1 1 . . . 1 . . . . . . Utility 8 | . . 1 1 . . . 2 . . . 2 . 2 Weapon . | . . . . . . . . . . . . . . Parts Attached 140 | 6 3 12 18 14 . 2 20 22 7 9 22 1 4 Power 14 | 1 . . 1 2 . . 1 4 1 . 4 . . Engine 8 | 1 . . 1 2 . . . 2 . . 2 . . Core 5 | . . . . . . . 1 2 . . 2 . . Reactor 1 | . . . . . . . . . 1 . . . . Propulsion 58 | 2 1 5 9 8 . . 7 5 2 4 13 . 2 Treads 25 | 2 1 5 9 8 . . . . . . . . . Leg 2 | . . . . . . . . . 2 . . . . Wheel . | . . . . . . . . . . . . . . Hover 15 | . . . . . . . . . . 4 11 . . Flight 16 | . . . . . . . 7 5 . . 2 . 2 Utility 34 | 1 1 3 4 4 . 2 4 5 1 3 5 . 1 Device 7 | . . . . 2 . . 1 . . 1 3 . . Storage 5 | 1 . 1 2 . . . 1 . . . . . . Processor 4 | . . 1 . . . 1 . 1 . . . . 1 Hackware 11 | . . . 1 . . 1 2 3 . 2 2 . . Protection 7 | . 1 1 1 2 . . . 1 1 . . . . Artifact . | . . . . . . . . . . . . . . Weapon 34 | 2 1 4 4 . . . 8 8 3 2 . 1 1 Energy Gun . | . . . . . . . . . . . . . . Energy Cannon 1 | . . . . . . . . . 1 . . . . Ballistic Gun 10 | 2 1 4 2 . . . . . . 1 . . . Ballistic Cannon 15 | . . . 2 . . . 8 4 1 . . . . Launcher 4 | . . . . . . . . 1 1 . . 1 1 Special Weapon . | . . . . . . . . . . . . . . Impact Weapon 3 | . . . . . . . . 3 . . . . . Slashing Weapon 1 | . . . . . . . . . . 1 . . . Piercing Weapon . | . . . . . . . . . . . . . . Special Melee Weapon . | . . . . . . . . . . . . . . Unidentified Prototypes 4 | . . . . . . . . 1 2 . . . 1 Parts Lost 52 | . . 4 9 2 . . 7 11 2 . 13 1 3 Power 6 | . . . 1 1 . . 2 1 . . 1 . . Propulsion 25 | . . 2 5 . . . 3 5 1 . 7 . 2 Utility 14 | . . 1 1 1 . . 2 3 . . 5 1 . Weapon 7 | . . 1 2 . . . . 2 1 . . . 1 Highest Loss Streak 13 | . . 2 3 1 . . 4 3 1 . 13 1 2 To Critical Strikes 2 | . . . . . . . . . 2 . . . . Average Slot Usage (%) 87 | . 94 91 84 96 100 100 80 55 54 81 83 9 7 Engine 7 | . 14 11 8 9 9 9 5 . . . 6 . . Treads 24 | . 28 32 34 36 36 36 . . . . . . . Hover 1 | . . . . . . . . . . 9 25 . . Flight 5 | . . . . . . . 32 20 10 5 . . . Storage 8 | . 14 11 9 9 9 9 6 6 6 6 4 . . Processor 7 | . . 6 9 9 9 9 6 4 6 6 5 5 7 Hackware 9 | . . . 1 9 9 9 17 13 20 20 27 3 . Protection 5 | . 9 7 2 4 9 9 . 1 1 3 . . . Ballistic Gun 5 | . 28 22 12 . . . . . . . . . . Ballistic Cannon 8 | . . . 5 18 18 18 . 1 2 . . . . Peak Build Rating 82 | 6 7 13 25 31 27 33 53 52 58 68 82 16 29 Average Rating 28 | 3 6 11 16 27 27 30 42 28 33 61 70 9 10 On Entrance 22 | . 6 7 13 25 27 27 33 18 29 58 57 11 6 Naked Turns . | . . . . . . . . . . . . . . Heaviest Build 109 | 13 17 34 100 109 106 106 25 26 47 47 36 . . Greatest Support 80 | 40 40 60 80 80 80 80 25 23 56 56 51 3 14 Greatest Overweight (x) 3 | . . . 1 1 1 1 . 1 3 3 3 . . Average Overweight (x) . | . . . . 1 1 1 . . 1 . . . . Largest Inventory Capacity 25 | 8 8 15 25 25 25 25 25 10 10 10 10 5 5 Average Capacity 17 | 6 8 14 22 25 25 25 10 10 10 10 9 5 5 Most Carried 25 | 8 8 15 25 25 25 25 25 10 10 10 10 3 4 Average Carried 17 | 5 7 13 20 24 25 25 9 8 9 9 9 2 3 Final Capacity 25 | 8 8 15 25 25 25 25 10 10 10 10 5 5 5 Final Carried 25 | 6 8 15 24 25 25 25 10 10 10 10 3 3 3 Class Distribution -------------------- 55% | Scavenger-Mutant 15% | Mutant 9% | Commander-Mutant 9% | Hacker-Sprinter 4% | Hacker-Mutant 4% | Wizard-Mutant Dominant Class ---------------- Mutant | -10/Materials Scavenger-Mutant | -9/Materials Scavenger-Mutant | -8/Materials Commander-Mutant | -8/Storage Scavenger-Mutant | -8/Recycling Scavenger-Mutant | -8/Scraptown Hacker-Sprinter | -6/Factory Mutant | -6/Extension Commander-Mutant | -6/Cetus Scavenger-Mutant | -6/Archives Wizard-Mutant | -5/Factory Mutant | -5/Garrison Mutant | -4/Factory Resources | -11 -10 -9 -8 -8 -8 -8 -6 -6 -6 -6 -5 -5 -4 ----------- Run | Yrd Mat Mat Mat Sto Rec Scr Fac Ext Cet Arc Fac Gar Fac Matter Collected 3431 | 214 349 495 445 615 33 145 128 555 257 105 90 . . Remotely . | . . . . . . . . . . . . . . Salvage Created 3659 | . 672 945 551 681 24 . 58 457 1 243 27 . . Parts 235 | . 35 71 42 45 1 . 5 13 . 18 5 . . Haulers Intercepted 6 | . . 4 1 1 . . . . . . . . . Recyclers Shooed 2 | . . . . 1 . . . 1 . . . . . Parts Field Recycled . | . . . . . . . . . . . . . . Retrieved Matter . | . . . . . . . . . . . . . . Parts Self-Destructed . | . . . . . . . . . . . . . . Prevented . | . . . . . . . . . . . . . . Kills | -11 -10 -9 -8 -8 -8 -8 -6 -6 -6 -6 -5 -5 -4 ------- Run | Yrd Mat Mat Mat Sto Rec Scr Fac Ext Cet Arc Fac Gar Fac Combat Hostiles Destroyed 69 | . 13 15 13 15 1 . 3 8 1 . . . . Melee 4 | . . . . . . . . 4 . . . . . Guns 38 | . 13 15 10 . . . . . . . . . . Cannons 21 | . . . 3 14 1 . 2 1 . . . . . AOE 3 | . . . . 1 . . 1 . 1 . . . . Classes Destroyed 13 | . 5 4 2 . . . 1 1 . . . . . Worker 4 | . 1 1 . 2 . . . . . . . . . Builder 2 | . . . 1 1 . . . . . . . . . Tunneler 1 | . . . 1 . . . . . . . . . . Hauler 6 | . . 4 1 1 . . . . . . . . . Recycler 5 | . 1 2 . 2 . . . . . . . . . Operator 14 | . . 1 2 1 . . 1 1 . 8 . . . Watcher 8 | . 3 2 . 1 . . . . 1 . 1 . . Swarmer 14 | . 3 4 5 1 . . 1 . . . . . . Grunt 32 | . 10 6 6 6 . . . 4 . . . . . Brawler 1 | . . . . . . . . 1 . . . . . Duelist 2 | . . 1 . . . . . 1 . . . . . Sentry 17 | . . 4 2 8 1 . . 2 . . . . . Programmer 2 | . . . . . . . 2 . . . . . . Cetus Guard 1 | . . . . . . . . . 1 . . . . Best Kill Streak 6 | . 4 6 4 6 1 . 2 3 2 3 1 . . Combat Bots Only 5 | . 3 5 4 2 1 . 2 3 1 . . . . Max Kills in Single Turn 3 | . 1 1 1 3 1 . 2 1 1 1 1 . . Gunslinging . | . . . . . . . . . . . . . . Exploded 1 | . . . . 1 . . 1 . 1 . . . . Melee 1 | . . . . . . . . 1 . . . . . Uniques/NPCs Destroyed . | . . . . . . . . . . . . . . Combat | -11 -10 -9 -8 -8 -8 -8 -6 -6 -6 -6 -5 -5 -4 -------- Run | Yrd Mat Mat Mat Sto Rec Scr Fac Ext Cet Arc Fac Gar Fac Hostile Shots Fired 714 | . 50 71 118 57 4 . 78 122 20 15 89 5 85 Missed 220 | . 13 19 28 11 1 . 35 40 8 6 28 1 30 Damage Taken 7983 | . 478 737 1206 771 48 . 756 1133 242 216 1053 74 1269 Core 2858 | . 46 96 91 90 . . 220 436 66 75 530 55 1153 Absorbed by Shields 159 | . . . . . . . . 60 88 . . . 11 Redirected to Shielding 31 | . . . . . . . . 31 . . . . . Core Remaining (%) 61 | 100 81 76 . . . 67 . . . 6 . 41 . Volleys Fired 301 | . 47 65 65 51 3 . 23 12 10 24 . . 1 Largest 2 | . 2 2 2 2 2 . 2 2 1 1 . . 1 Hottest 105 | . 40 46 96 96 96 . 96 105 43 90 . . 43 Shots Fired 543 | . 93 130 129 102 6 . 33 14 11 24 . . 1 Gun 334 | . 93 130 111 . . . . . . . . . . Cannon 193 | . . . 18 102 6 . 33 9 1 24 . . . Launcher 16 | . . . . . . . . 5 10 . . . 1 Special . | . . . . . . . . . . . . . . Kinetic 503 | . 93 130 129 102 6 . 33 9 1 . . . . Thermal 24 | . . . . . . . . . . 24 . . . Explosive 16 | . . . . . . . . 5 10 . . . 1 Electromagnetic . | . . . . . . . . . . . . . . Robot Hit Streak 14 | . 9 7 14 8 4 . 5 3 12 5 . . 1 Robot Miss Streak 5 | . 5 5 5 2 1 . 2 3 1 3 . . . Penetration Max 1 | . . . . 1 . . . . . . . . . Secondary Targets 7 | . 4 2 1 . . . . . . . . . . Max Gunslinging Chain 1 | . 1 1 1 . . . . . . . . . . Shots Hit Robots 377 | . 55 89 89 59 4 . 13 25 9 27 6 . 1 Core Hits 172 | . 31 35 35 25 1 . 4 8 14 13 2 . 4 Critical Kills 3 | . 1 . . . . . . 2 . . . . . Critical Parts Destroyed 7 | . 1 . . . . . . 5 1 . . . . Critical Strikes 26 | . 2 . 1 14 . . 1 7 1 . . . . Destroy 5 | . 2 . . . . . . 2 1 . . . . Blast 16 | . . . 1 14 . . 1 . . . . . . Smash 5 | . . . . . . . . 5 . . . . . Melee Attacks 45 | . . . . . . . . 21 . 12 12 . . Impact 21 | . . . . . . . . 21 . . . . . Slashing 24 | . . . . . . . . . . 12 12 . . Piercing . | . . . . . . . . . . . . . . Sneak Attacks 14 | . . . . . . . . 2 . 11 1 . . Combat Hostiles 1 | . . . . . . . . 1 . . . . . Follow-up Attacks . | . . . . . . . . . . . . . . Damage Inflicted 10151 | . 723 1262 1134 2066 117 . 584 1265 801 1713 279 . 207 Guns 2864 | . 723 1251 890 . . . . . . . . . . Cannons 3274 | . . . 244 1888 117 . 351 88 18 568 . . . Explosions 1580 | . . . . 167 . . 233 84 783 124 . . 189 Melee 2393 | . . . . . . . . 1093 . 1021 279 . . Ramming 40 | . . 11 . 11 . . . . . . . . 18 Kinetic 5570 | . 723 1251 1134 1888 117 . 351 88 18 . . . . Thermal 925 | . . . . . . . 233 . . 692 . . . Explosive 1223 | . . . . 167 . . . 84 783 . . . 189 Electromagnetic . | . . . . . . . . . . . . . . Impact 1093 | . . . . . . . . 1093 . . . . . Slashing 1300 | . . . . . . . . . . 1021 279 . . Piercing . | . . . . . . . . . . . . . . Highest Corruption 6 | . 1 . . . . . 3 6 6 6 . . . Average Corruption 3 | . 1 . . . . . 2 4 6 6 . . . Corruption Purged . | . . . . . . . . . . . . . . Corruption Blocked . | . . . . . . . . . . . . . . Effects 44 | . 6 . . . . . 2 13 12 11 . . . Message Errors 12 | . 1 . . . . . 1 6 2 2 . . . Matter Fused 9 | . . . . . . . 1 3 3 2 . . . Heat Flow Errors 4 | . . . . . . . . . 1 3 . . . Energy Discharges 5 | . 2 . . . . . . 1 2 . . . . Parts Rejected 1 | . 1 . . . . . . . . . . . . Parts Fused 1 | . . . . . . . . . . 1 . . . Data Loss (minor) 5 | . 1 . . . . . . 1 2 1 . . . Data Loss (major) 4 | . . . . . . . . 1 1 2 . . . Misfires 2 | . . . . . . . . 1 1 . . . . Weapon Failures 1 | . 1 . . . . . . . . . . . . Overload Shots . | . . . . . . . . . . . . . . Overflow Damage 846 | . . . . 130 . . 7 395 3 278 19 . 14 Projectiles 105 | . . . . 88 . . 7 . . 10 . . . Explosions 59 | . . . . 42 . . . . 3 . . . 14 Melee 682 | . . . . . . . . 395 . 268 19 . . Knockbacks 25 | . . . 3 11 . . 2 7 1 . . . 1 Impact 6 | . . . . . . . . 5 . . . . 1 Kinetic 17 | . . . 3 9 . . 2 2 1 . . . . Secondary 2 | . . . . 2 . . . . . . . . . Self-Inflicted Damage 221 | . . . . 65 . . 77 . . . . . 79 Shots 3 | . . . . 1 . . 1 . . . . . 1 Rammed 4 | . . 1 . 2 . . . . . . . . 1 Targets Rammed 4 | . . 1 . 2 . . . . . . . . 1 Kicked . | . . . . . . . . . . . . . . Crushed . | . . . . . . . . . . . . . . Highest Temperature 330 | . 28 4 234 249 99 . 230 12 138 330 284 . . Average Temperature 76 | . 11 2 57 60 50 . 78 6 93 126 96 . . Received Heat Transfer 1810 | . 279 183 441 324 9 . 72 244 . 27 63 36 132 Effects 3 | . . . . . . . 3 . . . . . . Interference 3 | . . . . . . . 3 . . . . . . Siege Activations . | . . . . . . . . . . . . . . Robots Corrupted 3 | . . . . . . . . 3 . . . . . Combat Hostiles 3 | . . . . . . . . 3 . . . . . Parts Fried 8 | . . . . . . . . 8 . . . . . Impact Corruptions 10 | . . . . . . . . 10 . . . . . Robots Melted . | . . . . . . . . . . . . . . Combat Hostiles . | . . . . . . . . . . . . . . Parts Melted 1 | . . . . 1 . . . . . . . . . Heat Transferred 250 | . . . . . . . 150 . . 100 . . . Parts Sabotaged . | . . . . . . . . . . . . . . Parts Stolen . | . . . . . . . . . . . . . . Parts Stripped . | . . . . . . . . . . . . . . Power Chain Reactions 2 | . . . . . . . . . . 2 . . . Alert | -11 -10 -9 -8 -8 -8 -8 -6 -6 -6 -6 -5 -5 -4 ------- Run | Yrd Mat Mat Mat Sto Rec Scr Fac Ext Cet Arc Fac Gar Fac Peak Influence 854 | . 196 293 267 455 204 . 311 854 694 368 297 191 229 Initial 477 | . . 40 99 13 177 . . 109 477 197 60 106 100 Average 176 | . 94 171 83 140 201 . 60 414 607 301 170 116 132 Maximum Alert Level 3 | . . 1 1 2 1 . 1 3 2 1 1 . 1 Low Security (%) 69 | 100 100 67 94 70 9 . 90 31 . 19 53 100 96 Level 1 20 | . . 32 5 17 90 . 9 23 . 80 46 . 3 Level 2 8 | . . . . 11 . . . 23 100 . . . . Level 3 1 | . . . . . . . . 22 . . . . . Level 4 . | . . . . . . . . . . . . . . Level 5 . | . . . . . . . . . . . . . . High Security . | . . . . . . . . . . . . . . Max Security . | . . . . . . . . . . . . . . Squads Dispatched 19 | . 2 . 1 3 . . 5 1 . . 2 . 5 Investigation 4 | . 1 . . . . . 1 . . . . . 2 Extermination 3 | . . . . . . . 3 . . . . . . Reinforcement 10 | . 1 . 1 2 . . 1 1 . . 2 . 2 Assault 1 | . . . . . . . . . . . . . 1 Garrison 1 | . . . . 1 . . . . . . . . . Intercept . | . . . . . . . . . . . . . . Searches Triggered . | . . . . . . . . . . . . . . Construction Impeded 1 | . . . . 1 . . . . . . . . . Haulers Reinforced 2 | . . . . . . . . . . . 1 . 1 Active Scanning Responses . | . . . . . . . . . . . . . . Cargo Convoy Interrupts 1 | . . . . . . . 1 . . . . . . Stealth | -11 -10 -9 -8 -8 -8 -8 -6 -6 -6 -6 -5 -5 -4 --------- Run | Yrd Mat Mat Mat Sto Rec Scr Fac Ext Cet Arc Fac Gar Fac Distress Signals 16 | . 2 1 2 5 . . . 2 2 . 2 . . Communications Jammed . | . . . . . . . . . . . . . . Distress Signals . | . . . . . . . . . . . . . . Times Spotted 202 | . 20 20 18 22 1 . 25 28 8 27 13 5 15 Peak Tracking Total 8 | . 5 5 6 3 1 . 8 7 5 2 6 4 8 Tactical Retreats 22 | . 1 1 1 1 . . 8 4 . . 2 2 2 Traps | -11 -10 -9 -8 -8 -8 -8 -6 -6 -6 -6 -5 -5 -4 ------- Run | Yrd Mat Mat Mat Sto Rec Scr Fac Ext Cet Arc Fac Gar Fac Traps Triggered 13 | . 2 . 1 1 . . 1 4 . . 3 . 1 Indirectly . | . . . . . . . . . . . . . . Trap Hack Attempts . | . . . . . . . . . . . . . . Triggered . | . . . . . . . . . . . . . . Disarmed . | . . . . . . . . . . . . . . Reprogrammed . | . . . . . . . . . . . . . . Reused . | . . . . . . . . . . . . . . Traps Extracted . | . . . . . . . . . . . . . . Installed . | . . . . . . . . . . . . . . Triggered 2 | . . . . . . . 2 . . . . . . Machines | -11 -10 -9 -8 -8 -8 -8 -6 -6 -6 -6 -5 -5 -4 ---------- Run | Yrd Mat Mat Mat Sto Rec Scr Fac Ext Cet Arc Fac Gar Fac Machines Disabled 14 | . . . 3 5 . . 2 2 . 1 1 . . Max in Single Turn 2 | . . . 1 1 . . 2 1 . 1 . . . Garrison Access 4 | . . . . 1 . . . . . . 2 . 1 Energy Cycler 1 | . . . . . . . . 1 . . . . . Machines Repaired . | . . . . . . . . . . . . . . Machines Dismantled . | . . . . . . . . . . . . . . Machines Sabotaged . | . . . . . . . . . . . . . . Overloaded Fab Kills . | . . . . . . . . . . . . . . Hacking | -11 -10 -9 -8 -8 -8 -8 -6 -6 -6 -6 -5 -5 -4 --------- Run | Yrd Mat Mat Mat Sto Rec Scr Fac Ext Cet Arc Fac Gar Fac Machines Accessed 48 | . 2 7 3 5 . 7 6 6 2 . 6 2 2 Terminals 31 | . 2 7 2 4 . . 5 6 2 . 1 2 . Fabricators 2 | . . . . . . . 1 . . . 1 . . Repair Stations . | . . . . . . . . . . . . . . Recycling Units 3 | . . . 1 . . . . . . . 1 . 1 Scanalyzers . | . . . . . . . . . . . . . . Garrison Access 5 | . . . . 1 . . . . . . 3 . 1 Total Hacks 158 | . 5 24 11 20 . 27 34 12 4 . 11 4 6 Successful 100 | . 5 16 4 11 . 27 18 8 4 . 7 . . Failed 58 | . . 8 7 9 . . 16 4 . . 4 4 6 Catastrophic 5 | . . . . 1 . . 2 . . . . . 2 Database Lockouts . | . . . . . . . . . . . . . . Manual 37 | . 2 12 2 2 . . 16 . 1 . 1 1 . Terminals 113 | . 5 24 10 19 . . 31 12 4 . 4 4 . Fabricators 4 | . . . . . . . 3 . . . 1 . . Repair Stations . | . . . . . . . . . . . . . . Recycling Units 6 | . . . 1 . . . . . . . 2 . 3 Scanalyzers . | . . . . . . . . . . . . . . Garrison Access 8 | . . . . 1 . . . . . . 4 . 3 Terminal Hacks 79 | . 3 12 3 10 . 27 10 8 4 . 2 . . Record 30 | . . . . . . 26 . 1 3 . . . . Part Schematic 2 | . . . . 1 . . 1 . . . . . . Prototype ID Bank 9 | . 1 5 1 1 . . 1 . . . . . . Open Door 8 | . . . . 1 . . 1 5 1 . . . . Branch Access Points 5 | . 1 1 1 1 . . 1 . . . . . . Machine Index 1 | . . . . . . . . . . . 1 . . Alert Level 6 | . . 1 . 2 . . 1 1 . . 1 . . Unreport Threat 1 | . . . . 1 . . . . . . . . . Locate Traps 4 | . . 2 . 1 . . 1 . . . . . . Recall Investigation 1 | . . . . . . . 1 . . . . . . Hauler Manifests 2 | . 1 1 . . . . . . . . . . . Registered Components 3 | . . 1 1 . . . 1 . . . . . . Registered Prototypes 1 | . . . . . . . 1 . . . . . . Zone Layout 5 | . . 1 . 2 . . 1 1 . . . . . Derelict Proto ID Bank 1 | . . . . . . 1 . . . . . . . Fabricator Hacks 4 | . . . . . . . 3 . . . 1 . . Network Status 1 | . . . . . . . 1 . . . . . . Load Schematic 1 | . . . . . . . 1 . . . . . . Build 2 | . . . . . . . 1 . . . 1 . . Repair Station Hacks . | . . . . . . . . . . . . . . Recycling Unit Hacks 2 | . . . 1 . . . . . . . 1 . . Report Inventory 2 | . . . 1 . . . . . . . 1 . . Scanalyzer . | . . . . . . . . . . . . . . Garrison Access Hacks 4 | . . . . 1 . . . . . . 3 . . Unlock Access 1 | . . . . . . . . . . . 1 . . Seal Access 3 | . . . . 1 . . . . . . 2 . . Unauthorized Hacks 10 | . 2 3 . . . . 5 . . . . . . Terminals 10 | . 2 3 . . . . 5 . . . . . . Assimilate 1 | . . . . . . . 1 . . . . . . Botnet 7 | . 2 2 . . . . 3 . . . . . . Operators 2 | . . 1 . . . . 1 . . . . . . Fabricators . | . . . . . . . . . . . . . . Repair Stations . | . . . . . . . . . . . . . . Recycling Units . | . . . . . . . . . . . . . . Scanalyzers . | . . . . . . . . . . . . . . Garrison Access . | . . . . . . . . . . . . . . Data Cores Recovered 1 | . . 1 . . . . . . . . . . . Used . | . . . . . . . . . . . . . . Hacking Detections 28 | . 2 5 2 5 . . 5 3 . . 2 2 2 Full Trace Events 5 | . 1 . . . . . 1 . . . . 1 2 Feedback Events . | . . . . . . . . . . . . . . Feedback Blocked . | . . . . . . . . . . . . . . Robot Schematics Acquired . | . . . . . . . . . . . . . . Robots Built . | . . . . . . . . . . . . . . Authchips . | . . . . . . . . . . . . . . Time . | . . . . . . . . . . . . . . Total Robot Build Rating . | . . . . . . . . . . . . . . Part Schematics Acquired 2 | . . . . 1 . . 1 . . . . . . Parts Built 3 | . . . . . . . 1 . . . 2 . . Authchips . | . . . . . . . . . . . . . . Time 187 | . . . . . . . 134 . . . 53 . . Total Part Build Rating 16 | . . . . . . . 4 . . . 12 . . Parts Repaired . | . . . . . . . . . . . . . . Time . | . . . . . . . . . . . . . . Parts Recycled . | . . . . . . . . . . . . . . Recycled Matter . | . . . . . . . . . . . . . . Retrieved Matter . | . . . . . . . . . . . . . . Retrieved Components . | . . . . . . . . . . . . . . Parts Scanalyzed . | . . . . . . . . . . . . . . Part Schematics Acquired . | . . . . . . . . . . . . . . Parts Damaged . | . . . . . . . . . . . . . . Bothacking | -11 -10 -9 -8 -8 -8 -8 -6 -6 -6 -6 -5 -5 -4 ------------ Run | Yrd Mat Mat Mat Sto Rec Scr Fac Ext Cet Arc Fac Gar Fac Used RIF Installer . | . . . . . . . . . . . . . . Robots Hacked . | . . . . . . . . . . . . . . Non-combat . | . . . . . . . . . . . . . . Combat . | . . . . . . . . . . . . . . Robot Hacks Applied . | . . . . . . . . . . . . . . Relay Couplers Released 3 | . . . . . . . . . . . . . 3 Machine Destruction 3 | . . . . . . . . . . . . . 3 Fabnet Peak Effective % . | . . . . . . . . . . . . . . Robots Rewired 15 | . . . . . . . . 15 . . . . . Allies Hacked . | . . . . . . . . . . . . . . Hacks Repelled . | . . . . . . . . . . . . . . Allies | -11 -10 -9 -8 -8 -8 -8 -6 -6 -6 -6 -5 -5 -4 -------- Run | Yrd Mat Mat Mat Sto Rec Scr Fac Ext Cet Arc Fac Gar Fac Total Allies 39 | . . . . 10 . . 1 23 5 . . . . Largest Group 16 | . . . . 10 2 2 2 13 16 7 3 . . Highest-Rated Group 886 | . . . . 173 45 45 45 492 886 436 231 . . Highest-Rated Ally 159 | . . . . 29 29 29 29 159 159 137 96 . . Total Orders 8 | . . . . 4 . . . . . . 4 . . STAY 2 | . . . . . . . . . . . 2 . . FOLLOW 2 | . . . . . . . . . . . 2 . . EXPLORE 4 | . . . . 4 . . . . . . . . . Ally Attacks 246 | . . . . 39 5 . 3 84 66 16 33 . . Total Damage 7287 | . . . . 472 52 . 56 2196 2644 520 1347 . . Kills 49 | . . . . 4 . . 1 19 11 4 10 . . Allies Corrupted 2 | . . . . . . . . 2 . . . . . Allies Melted . | . . . . . . . . . . . . . . Intel | -11 -10 -9 -8 -8 -8 -8 -6 -6 -6 -6 -5 -5 -4 ------- Run | Yrd Mat Mat Mat Sto Rec Scr Fac Ext Cet Arc Fac Gar Fac Robot Analysis Total . | . . . . . . . . . . . . . . Derelict Logs Recovered . | . . . . . . . . . . . . . . Drone Launches 4 | . . . . 4 . . . . . . . . . Drone Recoveries 1 | . . . . 1 . . . . . . . . . Exploration | -11 -10 -9 -8 -8 -8 -8 -6 -6 -6 -6 -5 -5 -4 ------------- Run | Yrd Mat Mat Mat Sto Rec Scr Fac Ext Cet Arc Fac Gar Fac Turns Passed 12220 | 75 928 1171 1332 1100 162 3821 1253 634 474 471 540 97 162 Spaces Moved 7047 | 45 455 565 482 304 61 1591 1332 482 244 211 821 190 264 Core 439 | 12 . . . . . . . . . . 10 190 227 Treads 3491 | 33 455 565 482 304 61 1591 . . . . . . . Legs 166 | . . . . . . . . . 60 106 . . . Wheels . | . . . . . . . . . . . . . . Hover 854 | . . . . . . . . . . 105 749 . . Flight 2097 | . . . . . . . 1332 482 184 . 62 . 37 Fastest Speed 25 | 50 160 160 160 240 240 240 27 25 109 48 40 50 37 Average Speed 129 | 130 160 160 195 240 240 240 27 40 144 151 44 50 48 Slowest Speed 260 | 160 160 160 240 240 240 240 37 109 250 260 200 50 50 Overloaded Moves . | . . . . . . . . . . . . . . Propulsion Burnouts . | . . . . . . . . . . . . . . Robots Hopped 38 | . . . . . . . 37 1 . . . . . Cave-ins Triggered . | . . . . . . . . . . . . . . Exploration Rate (%) 46 | 4 82 49 37 75 13 91 17 61 78 83 21 26 9 Regions Visited 13 Branch Regions 6 Pre-discovered Areas . | . . . . . . . . . . . . . . Known Exits Taken 10 | . . 1 1 1 1 1 1 1 1 1 1 . . Unknown Exits Taken 2 | 1 1 . . . . . . . . . . . . Scrap Searched 3 | . . . . . . 3 . . . . . . . Spaces Dug 124 | . . . 2 7 . . 10 102 . . 3 . . Terrain Destroyed 336 | . . . 6 50 3 . 56 106 86 6 3 . 20 Melee 3 | . . . . . . . . . . . 3 . . Projectile 79 | . . . 6 40 3 . 20 4 . 6 . . . AOE 254 | . . . . 10 . . 36 102 86 . . . 20 Terrain Rammed . | . . . . . . . . . . . . . . Walls Destroyed . | . . . . . . . . . . . . . . Machines Disabled . | . . . . . . . . . . . . . . Actions | -11 -10 -9 -8 -8 -8 -8 -6 -6 -6 -6 -5 -5 -4 --------- Run | Yrd Mat Mat Mat Sto Rec Scr Fac Ext Cet Arc Fac Gar Fac Total 9497 | 61 564 712 757 577 72 1594 2157 867 353 319 977 191 296 Wait 1620 | . 48 37 164 181 9 2 790 140 87 44 109 . 9 Move 6961 | 44 454 564 481 303 60 1590 1259 479 243 210 821 189 264 Hop 36 | . . . . . . . 35 1 . . . . . Pick Up 111 | 11 7 20 25 8 . . 4 14 3 9 6 . 4 Fast Attach 28 | 1 2 3 1 3 . . 1 1 3 3 10 . . Attach 81 | 5 . 6 12 2 . . 17 21 4 2 7 1 4 Detach 21 | . . 1 . . . . 8 8 2 1 . 1 . Swap 31 | . 1 3 5 9 . 2 2 . . 4 5 . . Drop 74 | . 5 12 4 16 . . 18 1 1 10 7 . . Fire 301 | . 47 65 65 51 3 . 23 12 10 24 . . 1 Melee 45 | . . . . . . . . 21 . 12 12 . . Ram 1 | . . . . . . . . . . . . . 1 Kick . | . . . . . . . . . . . . . . Crush 3 | . . 1 . 2 . . . . . . . . . Escape Stasis 77 | . . . . 2 . . . 62 . . . . 13 Rewire 107 | . . . . . . . . 107 . . . . . Trap . | . . . . . . . . . . . . . . Miscellaneous . | . . . . . . . . . . . . . . Route ------- -11/Scrapyard -10/Materials (discovered 4 exits: *Mat x2 / *Min x2) -9/Materials (discovered 2 exits: *Mat / Min) -8/Materials -8/Storage -8/Recycling -8/Scraptown (discovered 2 exits: *Fac x2) -6/Factory (discovered 5 exits: *Fac / Low x2 / *Ext x2) -6/Extension (discovered 2 exits: *Fac / *Cet) -6/Cetus (discovered 2 exits: *Fac / *Arc) -6/Archives (discovered 3 exits: *Fac / [*Hub x2]) -5/Factory (discovered 2 exits: *Fac / Gar) -5/Garrison -4/Factory History --------- Turn | Location | Event 20 | -11/Scrapyard | Discovered new exit (range 16) 76 | -11/Scrapyard | Entered Materials 256 | -10/Materials | Identified exit to Mines 301 | -10/Materials | Build established: Mutant 399 | -10/Materials | Discovered new exit (range 8) 895 | -10/Materials | Discovered new exit (range 13) 1004 | -10/Materials | Entered another Materials area 1004 | -9/Materials | Evolved 2 slots: Propulsion x1, Utility x1 1250 | -9/Materials | Identified exit to Mines 1729 | -9/Materials | Build established: Scavenger-Mutant 2015 | -9/Materials | Discovered new exit (range 14) 2169 | -9/Materials | Identified exit to Materials 2175 | -9/Materials | Entered another Materials area 2175 | -8/Materials | Evolved 2 slots: Propulsion x1, Utility x1 2279 | -8/Materials | Discovered new exit (range 9) 2332 | -8/Materials | Identified exit to Storage 2589 | -8/Materials | Lost 3 parts (3n) 2709 | -8/Materials | Lost 3 parts (1p1n1w) 3507 | -8/Materials | Entered Storage 3612 | -8/Storage | Garrison activated, responded to threat 3865 | -8/Storage | Assisted by bots powering up and referring to "LRC-V3" 3914 | -8/Storage | Identified exit to Recycling 4159 | -8/Storage | Build established: Commander-Mutant 4584 | -8/Storage | Used back door to open Recycling access 4607 | -8/Storage | Entered Recycling 4607 | -8/Recycling | Accompanied by 2 allies 4698 | -8/Recycling | Scanned before Scraplab entrance 4734 | -8/Recycling | Entered Scraplab 4755 | -8/Recycling | Discovered new exit (range 3) 4758 | -8/Recycling | Identified exit to Scraptown 4769 | -8/Recycling | Entered Scraptown 4769 | -8/Scraptown | Accompanied by 2 allies 4905 | -8/Scraptown | Build established: Scavenger-Mutant 4952 | -8/Scraptown | Visited UFD Registry 4952 | -8/Scraptown | Registered with UFD as "Slugrider" 5017 | -8/Scraptown | Visited Shadow of the Wyrm 5091 | -8/Scraptown | Visited Awakened 5437 | -8/Scraptown | Visited LU-1G1's Boring Crew 5485 | -8/Scraptown | Visited Scrapoid Research Area 5547 | -8/Scraptown | Visited Chapter 10 6104 | -8/Scraptown | Visited Abandonware Association 6123 | -8/Scraptown | Learned abandonware demo "OVRCLOCK.EXE" 6133 | -8/Scraptown | Learned abandonware demo "REBOOT5.EXE" 6178 | -8/Scraptown | Visited Junk Repository 6347 | -8/Scraptown | Visited Science Guys 6539 | -8/Scraptown | Discovered new exit (range 3) 6551 | -8/Scraptown | Identified exit to Factory 6793 | -8/Scraptown | Visited Scrap Suit Storage 6865 | -8/Scraptown | Visited Supply Room 7048 | -8/Scraptown | Visited Science Testing Area 7175 | -8/Scraptown | Visited Cave Peace 7456 | -8/Scraptown | Discovered exit to Factory (range 9) 8308 | -8/Scraptown | Visited Assassins FH 8368 | -8/Scraptown | Visited Cyclists 8389 | -8/Scraptown | Entered Cyclist Reading Room 8590 | -8/Scraptown | Entered Factory 8590 | -6/Factory | Accompanied by 2 allies 8590 | -6/Factory | Evolved 4 slots: Power x1, Propulsion x1, Utility x2 8614 | -6/Factory | Identified exit to Lower Caves 8614 | -6/Factory | Identified exit to Extension 8892 | -6/Factory | Build established: Hacker-Sprinter 9187 | -6/Factory | Fabricated Cld. VTOL Module? 9655 | -6/Factory | Cargo convoy interrupted 9706 | -6/Factory | Lost 4 parts (2p2u) 9794 | -6/Factory | Discovered new exit (range 6) 9798 | -6/Factory | Identified exit to Factory 9831 | -6/Factory | Lost 3 parts (3n) 9843 | -6/Factory | Entered Extension 9895 | -6/Extension | Disrupted transfer network 10013 | -6/Extension | Rescued a captive Derelict 10040 | -6/Extension | Core integrity fell below 50% 10105 | -6/Extension | Rescued a captive Derelict 10106 | -6/Extension | Rescued a captive Derelict 10107 | -6/Extension | Rescued a captive Derelict 10195 | -6/Extension | Rescued a captive Derelict 10243 | -6/Extension | Energy Cycler disabled 10244 | -6/Extension | Rescued a captive Derelict 10244 | -6/Extension | Rescued a captive Derelict 10245 | -6/Extension | Rescued a captive Derelict 10246 | -6/Extension | Rescued a captive Derelict 10263 | -6/Extension | Rescued A7 10274 | -6/Extension | Lost 4 allies 10275 | -6/Extension | Lost 3 parts (1p1n1u) 10371 | -6/Extension | Lost 3 parts (2n1u) 10436 | -6/Extension | Discovered exit to Factory (range 10) 10437 | -6/Extension | Discovered new exit (range 6) 10457 | -6/Extension | Identified exit to Cetus 10477 | -6/Extension | Entered Cetus 10477 | -6/Cetus | Accompanied by 13 allies (A7) 10482 | -6/Cetus | Acquired a Cetus Manufacturing Module code from A7 10498 | -6/Cetus | Spotted Cetus Guard 10498 | -6/Cetus | Spotted Cetus Guard 10501 | -6/Cetus | Spotted Cetus Guard 10502 | -6/Cetus | Spotted Cetus Guard 10504 | -6/Cetus | Allies destroyed Cetus Guard 10504 | -6/Cetus | Allies destroyed Cetus Guard 10508 | -6/Cetus | Core integrity fell below 20% 10513 | -6/Cetus | Destroyed Cetus Guard 10521 | -6/Cetus | Allies destroyed Cetus Guard 10595 | -6/Cetus | Started Cetus Manufacturing Module 10620 | -6/Cetus | Manufactured an Enhanced Grunt 10645 | -6/Cetus | Manufactured an Enhanced Grunt 10669 | -6/Cetus | Escorted A7 to Cetus Mainframe 10670 | -6/Cetus | Manufactured an Enhanced Grunt 10676 | -6/Cetus | Build established: Commander-Mutant 10695 | -6/Cetus | Manufactured an Enhanced Grunt 10720 | -6/Cetus | Manufactured an Enhanced Grunt 10748 | -6/Cetus | Discovered new exit (range 15) 10763 | -6/Cetus | Identified exit to Archives 10786 | -6/Cetus | Spotted Cetus Guard 10794 | -6/Cetus | Spotted Cetus Guard 10794 | -6/Cetus | Spotted Cetus Guard 10795 | -6/Cetus | Spotted Cetus Guard 10816 | -6/Cetus | Allies destroyed Cetus Guard 10824 | -6/Cetus | Allies destroyed Cetus Guard 10827 | -6/Cetus | Allies destroyed Cetus Guard 10828 | -6/Cetus | Allies destroyed Cetus Guard 10836 | -6/Cetus | Discovered exit to Factory (range 15) 10841 | -6/Cetus | Met Revision 17 10855 | -6/Cetus | Lost 9 allies 10951 | -6/Cetus | Entered Archives 10951 | -6/Archives | Accompanied by 7 allies (A7) 10957 | -6/Archives | Received a hacking code to weaken MAIN.C 11003 | -6/Archives | Lost 3 allies 11032 | -6/Archives | Discovered new exit (range 14) 11092 | -6/Archives | Discovered new exit (range 15) 11191 | -6/Archives | Discovered exit to Factory (range 16) 11322 | -6/Archives | Build established: Scavenger-Mutant 11422 | -6/Archives | Entered Factory 11422 | -5/Factory | Accompanied by 3 allies 11422 | -5/Factory | Evolved 2 slots: Utility x2 11516 | -5/Factory | Fabricated Field Propulsion Drive (x2) 11621 | -5/Factory | Discovered new exit (range 5) 11622 | -5/Factory | Identified exit to Factory 11723 | -5/Factory | Build established: Wizard-Mutant 11948 | -5/Factory | Core integrity fell below 50% 11962 | -5/Factory | Identified exit to Garrison 11962 | -5/Factory | Entered Garrison 11991 | -5/Garrison | Lost 13 parts (1p7n5u) 12008 | -5/Garrison | Triggered checkpoint 12034 | -5/Garrison | Triggered checkpoint 12053 | -5/Garrison | Discovered exit to Factory (range 13) 12059 | -5/Garrison | Entered Factory 12059 | -4/Factory | Evolved 2 slots: Utility x2 12096 | -4/Factory | Spotted B-86 Titan 12130 | -4/Factory | Core integrity fell below 50% 12208 | -4/Factory | Core integrity fell below 20% 12221 | -4/Factory | Destroyed by G-67 Veteran with Field Laser Last Messages --------------- Field strength at 58. Field strength at 52. Field strength at 46. Field strength at 40. Field strength at 34. Field strength at 28. Field strength at 17. Field strength at 5. Stasis field depleted. Nuclear Reactor explodes. Terminal disabled. Acquired Impulse Thruster. Fusion Modulator explodes. Impulse Thruster destroyed. P-70 Sage destroyed. Slammed into G-67 Veteran. G-67 Veteran knocked back. Adv. Signal Interpreter broken. Destabilizing: Short circuit. [Achievement: I Think I Know What's Going On] Map ----- +----------------------------------------------------+ | ?# #??????????????????????????????????? | | ?#^ """ " #??????????????????????????????????? | | ?# """ "T" #??????????????????????????????????? | | ?# """ """ #??????????????????????????????????? | | ?# #####??????????????????????????????? | | ?# # ??????????????????????????????? | | ####+#### #"" ?????????????????????????????? | | ] # #?T ?? ??????????????????????????? | | """ # #?? """??????????????????????????? | | """ " +?? """??????????????????????????? | | """ # #??? """??????????????????????????? | | # #???? ""??????????????????????????? | | # #???? ""??????????????????????????? | | ! # #????? ###???????????????????????? | | ######### #???###;#; ####????????????????????? | | ????????# #???# ;;;;;;;;#????????????????????? | | ????????# #???# " ;#????????????????????? | | ????????# #???# " ;##???????????????????? | | ????????# #####"" ; #???????????????????? | | ????????# " ; #???????????????????? | | ???######+#"#######"" ; #???????????????????? | | ???# % " ] g ; #???????????????????? | | ???# """";;;"##???????????????????? | | ???# " ; ; #????????????????????? | | ???# ##### ###????????????????????? | | ???# #???#@#??????????????????????? | | ???# #???#g#??????????????????????? | | ???# #???] ??????????????????????? | | ???# #??? ??????????????????????? | | ???# #?? "?????????????????????? | | ???##################?? "?????????????????????? | | ?????????????????????? g""????????????????????? | | ?????????????????????? ""????????????????????? | | ?????????????????????# ???????????????????? | | ?????????????????????# """???????????????????? | | ?????????????????????#* """"??????????????????? | | ?????????????????????# """???????????????????? | | ?????????????????????# ""????????????????????? | | ?????????????????????# ????????????????????? | | ?????????????????????##+####?????????????????????? | | ?????????????????????????????????????????????????? | | ?????????????????????????????????????????????????? | | ?????????????????????????????????????????????????? | | ?????????????????????????????????????????????????? | | ?????????????????????????????????????????????????? | | ?????????????????????????????????????????????????? | | ?????????????????????????????????????????????????? | | ?????????????????????????????????????????????????? | | ?????????????????????????????????????????????????? | | ?????????????????????????????????????????????????? | +----------------------------------------------------+ Best States ------------- Heat Dissipation 43 Energy Generation 31 Energy Capacity 500 Matter Stores 300 Matter Capacity 300 Sight Range 23 Robot Scan Range 15 Terrain Scan Density 10 Armor Coverage 225 Propulsion Shielding 66 Evasion (%) 65 Recoil Reduction 4 Offensive Hacking 36 Defensive Hacking 24 Item Schematics ----------------- Adv. Signal Interpreter | -8/Storage | Hacked Cld. VTOL Module | -6/Factory | Hacked Robot Schematics ------------------ None Fabricated ------------ Cld. VTOL Module | x1 | -6/Factory Field Propulsion Drive | x2 | -5/Factory | Preloaded Alien Tech Used ----------------- None Achievements -------------- I Think I Know What's Going On Challenges ------------ None Game ------ Seed MachineKineticBay Manual? 0 Play Time 02:03:48 Cumulative 82.2 hours Start 2025.01.02 @ 20:52:55 End 2025.01.03 @ 21:20:56 Sessions 3 Manual Loads 0 Difficulty Rogue Special Mode None Game No. 86 Rogue 86 Adventurer 0 Explorer 0 Win Type - Total 1 Types 1/0/0/0/0/0/0/0/0 Lore% 51 Gallery% 43 Achievement% 43 Wizard Run 0 Options --------- Layout 1 ASCII 0 Keyboard 0 Movement Mouse Keybinds 0 Fullscreen 1 Font 24/Smallcaps Map View 50x35 Zoom Use 0% Tactical HUD 0 Map Filters NONE Filters NONE Steam 1 RUN: e39c4d56-c7f1-468c-ae17-b8fb42939a68